fUSD/lending_fUSD_20260202
["ID","MTS","AMOUNT","RATE_DAILY","PERIOD"]
[404253645,1770006647634,-343.08326797,0.00016568,2]
[404253646,1770006647643,-1500.0,0.00016568,2]
[404253647,1770006647653,-1500.0,0.00016568,2]
[404253648,1770006647662,-500.0,0.00016602,2]
[404253649,1770006647671,-500.0,0.00016657,2]
[404253650,1770006647680,-157.83,0.00016686,2]
[404253651,1770006647689,-500.0,0.00016712,2]
[404253652,1770006647700,-2835.0,0.0001672,2]
[404253653,1770006647709,-1625.0,0.0001672,2]
[404253654,1770006647718,-163.0,0.0001672,2]
[404253655,1770006647727,-500.0,0.00016767,2]
[404253656,1770006647737,-267.02,0.00016781,2]
[404253657,1770006647746,-233.51889341,0.00016803,2]
[404253658,1770006647755,-194.72792766,0.00016803,2]
[404253659,1770006647765,-233.51889341,0.00016803,2]
[404253660,1770006647774,-1592.87721993,0.00016803,2]
[404253661,1770006647783,-277.94807481,0.00016803,2]
[404253662,1770006647792,-233.51889341,0.00016803,2]
[404253663,1770006647802,-500.0,0.00016822,2]
[404253664,1770006647812,-19753.85891229,0.0001685,2]
[404253665,1770006647821,-15553.21923692,0.00016858,2]
[404253666,1770006647831,-500.0,0.00016876,2]
[404253667,1770006647840,-454.0,0.00016915,2]
[404253668,1770006647850,-23633.88,0.00016922,2]
[404253669,1770006647859,-9999.99,0.00016922,2]
[404253670,1770006647868,-4247.0,0.00016926,2]
[404253671,1770006647877,-500.0,0.00016931,2]
[404253672,1770006647887,-500.0,0.00016959,2]
[404253673,1770006647896,-500.0,0.00016986,2]
[404253674,1770006647905,-4247.0,0.00016989,2]
[404253675,1770006647914,-2205.73614126,0.00017,3]
[404253676,1770006647923,-300.0,0.00017,2]
[404253677,1770006647932,-157726.06092768,0.00017,2]
[404253678,1770006647941,-151.0,0.00017,2]
[404253679,1770006647950,-155.468766,0.00017,2]
[404253680,1770006647960,-151.0,0.00017009,2]
[404253681,1770006647969,-297.581403,0.00017009,2]
[404253682,1770006647978,-4247.0,0.00017009,2]
[404253683,1770006647987,-163.0,0.0001704,2]
[404253684,1770006647996,-163.0,0.0001704,2]
[404253685,1770006648005,-163.0,0.0001704,2]
[404253686,1770006648014,-500.0,0.00017041,2]
[404253687,1770006648024,-305.66548204,0.00017062,2]
[404253688,1770006648034,-363.53,0.0001709,2]
[404253689,1770006648043,-500.0,0.00017096,2]
[404253690,1770006648053,-200.0,0.00017108,2]
[404253691,1770006648064,-1008.230722,0.00017116,2]
[404253692,1770006648073,-2128.18837233,0.00017116,2]
[404253693,1770006648082,-2000.0,0.00017116,2]
[404253694,1770006648091,-1143.18674336,0.00017116,2]
[404253695,1770006648100,-2000.0,0.00017116,2]
[404253696,1770006648110,-2000.0,0.00017116,2]
[404253697,1770006648119,-315.28060531,0.00017116,2]
[404253698,1770006648128,-1474.64879752,0.00017116,2]
[404253699,1770006648138,-2000.0,0.00017116,2]
[404253700,1770006648147,-1006.20015718,0.00017116,2]
[404253701,1770006648156,-1756.98671009,0.00017116,2]
[404253702,1770006648166,-1988.36339388,0.00017116,2]
[404253703,1770006648175,-2000.0,0.00017116,2]
[404253704,1770006648184,-1189.68040771,0.00017116,2]
[404253705,1770006648193,-2000.0,0.00017116,2]
[404253706,1770006648202,-4247.0,0.00017127,2]
[404253707,1770006648211,-5888.0,0.00017139,2]
[404253708,1770006648220,-500.0,0.00017139,2]
[404253709,1770006648229,-500.0,0.0001715,2]
[404253710,1770006648238,-4247.0,0.00017153,2]
[404253711,1770006648247,-164.61,0.0001717,2]
[404253712,1770006648256,-274.64819737,0.00017171,2]
[404253713,1770006648266,-11335.0,0.00017193,2]
[404253714,1770006648275,-500.0,0.00017205,2]
[404253715,1770006648284,-200.0,0.00017244,2]
[404253716,1770006648293,-503.86937896,0.0001726,2]
[404253717,1770006648303,-1000.0,0.0001726,2]
[404253718,1770006648314,-200.0,0.0001731,2]
[404253719,1770006648324,-159.99157324,0.00017318,2]
[404253720,1770006648334,-1278.693,0.00017332,2]
[404253721,1770006648344,-161.033,0.00017332,2]
[404253722,1770006648353,-151.0,0.00017332,2]
[404253723,1770006648363,-170.567658,0.00017332,2]
[404253724,1770006648372,-151.0,0.00017332,2]
[404253725,1770006648382,-151.0,0.00017332,2]
[404253726,1770006648392,-925.751,0.00017332,2]
[404253727,1770006648402,-1205.0,0.00017332,2]
[404253728,1770006648411,-1338.357,0.00017332,2]
[404253729,1770006648421,-728.464,0.00017332,2]
[404253730,1770006648431,-3497.391,0.00017332,2]
[404253731,1770006648440,-242.15909246,0.00017351,2]
[404253732,1770006648452,-201.93286099,0.00017351,2]
[404253733,1770006648463,-260.62456749,0.00017351,2]
[404253734,1770006648473,-1651.81367706,0.00017351,2]
[404253735,1770006648483,-242.15909246,0.00017351,2]
[404253736,1770006648493,-19753.85891229,0.00017355,2]
[404253737,1770006648503,-15553.21923692,0.00017359,2]
[404253738,1770006648512,-4247.0,0.00017365,2]
[404253739,1770006648522,-256.207376,0.00017377,2]
[404253740,1770006648532,-256.207376,0.00017377,2]
[404253741,1770006648543,-256.207376,0.00017377,2]
[404253742,1770006648552,-256.207376,0.00017377,2]
[404253743,1770006648563,-151.0,0.00017377,2]
[404253744,1770006648572,-151.0,0.00017377,2]
[404253745,1770006648582,-151.0,0.00017377,2]
[404253746,1770006648591,-151.0,0.00017377,2]
[404253747,1770006648600,-379.112663,0.00017377,2]
[404253748,1770006648610,-151.0,0.00017377,2]
[404253749,1770006648619,-379.112663,0.00017377,2]
[404253750,1770006648628,-309.371222,0.00017377,2]
[404253751,1770006648637,-151.0,0.00017377,2]
[404253752,1770006648647,-379.112663,0.00017377,2]
[404253753,1770006648656,-309.371222,0.00017377,2]
[404253754,1770006648665,-379.112663,0.00017377,2]
[404253755,1770006648674,-309.371222,0.00017377,2]
[404253756,1770006648683,-309.371222,0.00017377,2]
[404253757,1770006648692,-163.404548,0.00017377,2]
[404253758,1770006648702,-200.0,0.00017425,2]
[404253759,1770006648711,-167.107,0.00017489,2]
[404253760,1770006648720,-13442.50995431,0.000175,2]
[404253761,1770006648729,-1899.6725397,0.00017502,2]
[404253762,1770006648738,-4247.0,0.00017506,2]
[404253763,1770006648747,-1522.26710959,0.0001751,2]
[404253764,1770006648757,-2059.6752,0.0001751,2]
[404253765,1770006648766,-200.0,0.0001751,2]
[404253766,1770006648776,-1160.276,0.00017532,2]
[404253767,1770006648785,-1000.0,0.00017534,2]
[404253768,1770006648794,-249.0,0.00017579,2]
[404253769,1770006648803,-868.9,0.00017581,2]
[404253770,1770006648814,-157.83,0.00017613,2]
[404253771,1770006648824,-3012.2001319,0.0001764,2]
[404253772,1770006648833,-502.76473862,0.00017664,2]
[404253773,1770006648843,-1002.53462592,0.00017664,2]
[404253774,1770006648854,-947.23523297,0.00017664,2]
[404253775,1770006648863,-1002.03881526,0.00017664,2]
[404253776,1770006648872,-1504.86417643,0.00017664,2]
[404253777,1770006648881,-1216.63993214,0.00017664,2]
[404253778,1770006648890,-163.0,0.0001768,2]
[404253779,1770006648900,-3292.0,0.00017714,2]
[404253780,1770006648911,-25000.0,0.00017715,3]
[404253781,1770006648920,-25000.0,0.00017724,3]
[404253782,1770006648929,-25000.0,0.00017733,3]
[404253783,1770006648939,-151.0,0.00017733,2]
[404253784,1770006648949,-151.0,0.00017733,2]
[404253785,1770006648959,-151.0,0.00017733,2]
[404253786,1770006648968,-433.0,0.00017734,2]
[404253787,1770006648977,-25000.0,0.00017742,3]
[404253788,1770006648987,-25000.0,0.0001775,3]
[404253789,1770006648998,-200.0,0.00017753,2]
[404253790,1770006649007,-403.0,0.00017756,2]
[404253791,1770006649016,-25000.0,0.00017759,3]
[404253792,1770006649025,-322.0,0.0001776,2]
[404253793,1770006649035,-25000.0,0.00017768,3]
[404253794,1770006649044,-25000.0,0.00017777,3]
[404253795,1770006649053,-4247.0,0.00017782,2]
[404253796,1770006649067,-405.0,0.00017783,2]
[404253797,1770006649076,-25000.0,0.00017786,3]
[404253798,1770006649085,-508.0,0.00017787,2]
[404253799,1770006649094,-25000.0,0.00017794,3]
[404253800,1770006649103,-25000.0,0.00017803,3]
[404253801,1770006649113,-500.0,0.00017808,2]
[404253802,1770006649122,-1000.0,0.00017808,2]
[404253803,1770006649131,-25000.0,0.00017812,3]
[404253804,1770006649140,-151.0,0.00017812,2]
[404253805,1770006649149,-554.71994,0.0001782,2]
[404253806,1770006649159,-554.71995,0.0001782,2]
[404253807,1770006649168,-18559.34183544,0.00017821,3]
[404253808,1770006649402,-151.0,0.00014555,2]
[404253809,1770006649412,-6440.65816456,0.00017821,3]
[404253810,1770006649421,-773.23,0.00017822,2]
[404253811,1770006649431,-390.301032,0.00017827,2]
[404253812,1770006649440,-25000.0,0.0001783,3]
[404253813,1770006649450,-66298.23687561,0.0001783,2]
[404253814,1770006649467,-2522.59390257,0.0001783,2]
[404253815,1770006649478,-455.93069983,0.0001783,2]
[404253816,1770006649725,-342.84674472,0.00013698,2]
[404253817,1770006649734,-434.05635279,0.00017777,2]
[404253818,1770006649746,-565.94364721,0.00017777,2]
[404253819,1770006649755,-37352.41391831,0.0001783,2]
[404253820,1770006649974,-157.43444445,0.00013598,2]
[404253821,1770006649983,-500.0,0.00013612,2]
[404253822,1770006649993,-53.49023049,0.00013784,2]
[404253823,1770006650004,-780.50976951,0.00013784,2]
[404253824,1770006650014,-670.53772627,0.0001783,2]
[404253825,1770006650089,-150.0,0.00016,2]
[404253826,1770006650099,-1482.89,0.0001783,2]
[404253827,1770006650111,-877.65513559,0.0001783,2]
[404253828,1770006650120,-151.0,0.0001783,2]
[404253829,1770006650129,-151.0,0.0001783,2]
[404253830,1770006650138,-25000.0,0.00017838,3]
[404253831,1770006650148,-151.0,0.00017847,2]
[404253832,1770006650158,-151.0,0.00017847,2]
[404253833,1770006650168,-151.0,0.00017847,2]
[404253834,1770006650177,-25000.0,0.00017847,3]
[404253835,1770006650186,-200.0,0.00017855,2]
[404253836,1770006650196,-989.28,0.00017855,2]
[404253837,1770006650205,-25000.0,0.00017856,3]
[404253838,1770006650215,-200.0,0.00017856,2]
[404253839,1770006650224,-200.0,0.00017856,2]
[404253840,1770006650233,-256.207376,0.00017856,2]
[404253841,1770006650242,-256.207376,0.00017856,2]
[404253842,1770006650252,-256.207376,0.00017856,2]
[404253843,1770006650263,-256.207376,0.00017856,2]
[404253844,1770006650273,-157.14472,0.00017856,2]
[404253845,1770006650282,-151.0,0.00017856,2]
[404253846,1770006650292,-163.359033,0.00017856,2]
[404253847,1770006650302,-151.0,0.00017856,2]
[404253848,1770006650315,-379.112663,0.00017856,2]
[404253849,1770006650326,-151.0,0.00017856,2]
[404253850,1770006650335,-379.112663,0.00017856,2]
[404253851,1770006650345,-309.371222,0.00017856,2]
[404253852,1770006650355,-285.375239,0.00017856,2]
[404253853,1770006650365,-379.112663,0.00017856,2]
[404253854,1770006650375,-309.371222,0.00017856,2]
[404253855,1770006650384,-379.112663,0.00017856,2]
[404253856,1770006650394,-309.371222,0.00017856,2]
[404253857,1770006650404,-309.371222,0.00017856,2]
[404253858,1770006650414,-15553.21923692,0.00017859,2]
[404253859,1770006650424,-19753.85891229,0.00017859,2]
[404253860,1770006650433,-500.0,0.00017863,2]
[404253861,1770006650443,-25000.0,0.00017865,3]
[404253862,1770006650455,-25000.0,0.00017874,3]
[404253863,1770006650467,-403.0,0.00017881,2]
[404253864,1770006650477,-151.0,0.00017882,2]
[404253865,1770006650487,-151.0,0.00017882,2]
[404253866,1770006650497,-151.0,0.00017882,2]
[404253867,1770006650507,-25000.0,0.00017882,3]
[404253868,1770006650516,-25000.0,0.00017891,3]
[404253869,1770006650526,-346.92554585,0.00017897,2]
[404253870,1770006650536,-747.8093786,0.00017898,2]
[404253871,1770006650546,-599.60298507,0.00017898,2]
[404253872,1770006650555,-251.11897888,0.00017899,2]
[404253873,1770006650570,-209.40437684,0.00017899,2]
[404253874,1770006650580,-1712.93078312,0.00017899,2]
[404253875,1770006650589,-251.11897888,0.00017899,2]
[404253876,1770006650599,-699.83153866,0.000179,2]
[404253877,1770006650608,-10139.4576,0.000179,2]
[404253878,1770006650618,-25000.0,0.000179,3]
[404253879,1770006650627,-152.959758,0.000179,2]
[404253880,1770006650636,-274.64819737,0.000179,2]
[404253881,1770006650646,-228.39919253,0.000179,2]
[404253882,1770006650656,-239.86447206,0.000179,2]
[404253883,1770006650666,-8217.94244244,0.000179,3]
[404253884,1770006650675,-5456.35939943,0.000179,2]
[404253885,1770006650684,-403.0,0.00017905,2]
[404253886,1770006650693,-500.0,0.00017918,2]
[404253887,1770006650703,-200.0,0.00017921,2]
[404253888,1770006650712,-348.13827783,0.00017924,2]
[404253889,1770006650721,-242.35,0.0001793,2]
[404253890,1770006650730,-4247.0,0.00017955,2]
[404253891,1770006650739,-440693.6371326,0.00017959,2]
[404253892,1770006650748,-4689.0419064,0.00017959,2]
[404253893,1770006650758,-3963.5837873,0.00017959,2]
[404253894,1770006650767,-1547.3093136,0.00017959,2]
[404253895,1770006650776,-16278.5025126,0.00017959,2]
[404253896,1770006650786,-151.0,0.00017959,2]
[404253897,1770006650795,-151.0,0.00017959,2]
[404253898,1770006650804,-151.0,0.00017959,2]
[404253899,1770006650817,-151.0,0.00017959,2]
[404253900,1770006650827,-151.0,0.00017959,2]
[404253901,1770006650837,-256.207376,0.00017959,2]
[404253902,1770006650847,-256.207376,0.00017959,2]
[404253903,1770006650856,-256.207376,0.00017959,2]
[404253904,1770006650866,-256.207376,0.00017959,2]
[404253905,1770006650875,-48.4367823,0.00017959,2]
[404253906,1770006650887,-102.5632177,0.00017959,2]
[404253907,1770006650900,-151.0,0.00017959,2]
[404253908,1770006650915,-379.112663,0.00017959,2]
[404253909,1770006650927,-151.0,0.00017959,2]
[404253910,1770006650936,-379.112663,0.00017959,2]
[404253911,1770006650947,-309.371222,0.00017959,2]
[404253912,1770006650957,-379.112663,0.00017959,2]
[404253913,1770006650967,-309.371222,0.00017959,2]
[404253914,1770006650976,-193.2364293,0.00017959,2]
[404253915,1770006651019,-150.0,0.000161,2]
[404253916,1770006651029,-282.225,0.00017332,2]
[404253917,1770006651042,-629.2,0.00017332,2]
[404253918,1770006651072,-1906.37139547,0.00013627,2]
[404253919,1770006651082,-1638.015,0.00017332,2]
[404253920,1770006651091,-185.8762337,0.00017959,2]
[404253921,1770006651100,-309.371222,0.00017959,2]
[404253922,1770006651110,-309.371222,0.00017959,2]
[404253923,1770006651119,-151.0,0.00017959,2]
[404253924,1770006651129,-170.976694,0.00017959,3]
[404253925,1770006651138,-359.0,0.0001796,2]
[404253926,1770006651148,-242.35,0.00017963,2]
[404253927,1770006651158,-500.0,0.00017972,2]
[404253928,1770006651167,-502.60776792,0.00017982,2]
[404253929,1770006651177,-382.0,0.00017983,2]
[404253930,1770006651186,-418.06378942,0.00017986,2]
[404253931,1770006651195,-151.0,0.00017986,2]
[404253932,1770006651205,-151.0,0.00017986,2]
[404253933,1770006651214,-151.0,0.00017986,2]
[404253934,1770006651223,-33863.48319073,0.0001799,3]
[404253935,1770006651232,-706.71498953,0.0001799,2]
[404253936,1770006651242,-163.40058662,0.00017994,2]
[404253937,1770006651251,-228.76082127,0.00017994,2]
[404253938,1770006651261,-433.0,0.00017995,2]
[404253939,1770006651274,-242.35,0.00017995,2]
[404253940,1770006651289,-150.0,0.00017999,2]
[404253941,1770006651307,-150.0,0.00017999,2]
[404253942,1770006651342,-150.0,0.00017999,2]
[404253943,1770006651359,-199.66269798,0.00017999,2]
[404253944,1770006651376,-300.0,0.00017999,2]
[404253945,1770006651394,-300.0,0.00017999,2]
[404253946,1770006651410,-300.0,0.00017999,2]
[404253947,1770006651426,-300.0,0.00017999,2]
[404253948,1770006651442,-670.68068141,0.00017999,2]
[404253949,1770006651463,-300.0,0.00017999,2]
[404253950,1770006651481,-300.0,0.00017999,2]
[404253951,1770006651496,-300.0,0.00017999,2]
[404253952,1770006651509,-666.0,0.00017999,2]
[404253953,1770006651524,-1000.0,0.00018,2]
[404253954,1770006651541,-1000.0,0.00018,2]
[404253955,1770006651556,-979.13654565,0.00018,2]
[404253956,1770006651575,-43577.10121611,0.00018,2]
[404253976,1770007081225,166.66,0.00012266,2]
[404253977,1770007081283,166.66,0.00012524,2]
[404253978,1770007081338,166.66,0.00012782,2]
[404253980,1770007143610,1600.0,0.0001277,2]
[404253983,1770007390539,-4322.90986851,0.00012941,2]
[404253984,1770007392720,-280.77359984,0.00012941,2]
[404253985,1770007394326,-500.0,0.00012941,2]
[404253986,1770007396324,-1854.27946016,0.00012941,2]
[404253987,1770007399003,-1492.90782458,0.00012941,2]
[404253988,1770007401203,-852.41999983,0.00012941,2]
[404253989,1770007404612,-190.48782475,0.00012941,2]
[404253990,1770007408125,-362.88705281,0.00012941,2]
[404253991,1770007409707,-241.10012185,0.00012941,2]
[404253992,1770007412789,-220.08765661,0.00012941,2]
[404253993,1770007414913,-195.17,0.00012941,2]
[404253994,1770007418156,-1286.51079292,0.00012941,2]
[404253995,1770007420318,-339.38924425,0.00012941,2]
[404253996,1770007422831,-550.0,0.00012941,2]
[404253997,1770007425528,-1601.98415386,0.00012941,2]
[404253998,1770007481015,-423.80383015,0.00012941,2]
[404253999,1770007481040,-1069.10399443,0.00012941,2]
[404254000,1770007482538,-504.29197886,0.00012941,2]
[404254001,1770007485133,-116.43101068,0.00012941,2]
[404254002,1770007485156,-1376.4768139,0.00012941,2]
[404254003,1770007525516,-313.35017007,0.00012941,2]
[404254004,1770007525539,-269.18437278,0.00012941,2]
[404254005,1770007527627,-1492.90782458,0.00012941,2]
[404254006,1770007529692,-1809.02323992,0.00012941,2]
[404254007,1770007532912,-203.46109691,0.00012941,2]
[404254008,1770007534982,-1142.65305143,0.00012941,2]
[404254009,1770007537503,-300.0,0.00012941,2]
[404254010,1770007542146,-224.23763091,0.00012941,2]
[404254011,1770007544731,-500.0,0.00012941,2]
[404254014,1770007613133,1875.84,0.0001245,2]
[404254082,1770007631574,-250.0,0.0001294,2]
[404254085,1770007675451,-300.0,0.0001292,2]
[404254086,1770007677531,-500.0,0.0001292,2]
[404254087,1770007679607,-500.0,0.0001292,2]
[404254088,1770007682256,-650.0,0.0001292,2]
[404254089,1770007684626,-500.0,0.0001292,2]
[404254090,1770007690492,-50.0,0.0001292,2]
[404254091,1770007690516,-230.54652626,0.0001293,2]
[404254092,1770007735663,-650.0,0.00012865,2]
[404254093,1770007738188,-69.45347374,0.0001293,2]
[404254144,1770007811084,-209.40652626,0.00012855,2]
[404254145,1770007813164,-166.66,0.00012855,2]
[404254146,1770007814642,-256.0,0.00012855,2]
[404254147,1770007816886,-414.04480227,0.00012855,2]
[404254148,1770007818275,-671.86649392,0.00012855,2]
[404254149,1770007820018,371.81,0.00012335,2]
[404254150,1770007820608,-191.87,0.00012855,2]
[404254151,1770007823378,-575.38540759,0.00012855,2]
[404254152,1770007830153,1316.44,0.00012335,2]
[404254153,1770007830345,1316.44,0.00012368,2]
[404254154,1770007830543,1316.44,0.000124,2]
[404254155,1770007830753,1316.44,0.00012433,2]
[404254156,1770007830978,1316.44,0.00012465,2]
[404254157,1770007831180,1316.44,0.00012498,2]
[404254158,1770007831439,1316.44,0.0001253,2]
[404254159,1770007831508,-420.715,0.00012855,2]
[404254160,1770007831567,-378.63644074,0.00012855,2]
[404254161,1770007831579,-454.00682122,0.00012855,2]
[404254162,1770007831590,-1074.99779418,0.0001292,2]
[404254163,1770007831627,1316.44,0.00012562,2]
[404254164,1770007831653,-17297.57190582,0.0001292,2]
[404254165,1770007831663,-256.0,0.0001292,2]
[404254166,1770007831673,-2249.9311,0.0001292,2]
[404254167,1770007831683,-150.0,0.0001294,2]
[404254168,1770007831693,-1200.0,0.0001294,2]
[404254170,1770007831702,-333.5551537,0.00012941,2]
[404254171,1770007831713,-10514.12176949,0.00012941,2]
[404254172,1770007831723,-641.99731881,0.00012941,2]
[404254173,1770007831732,-159.68554283,0.00012941,2]
[404254174,1770007831743,-15078.45490148,0.00012941,2]
[404254175,1770007831757,-1267.37023803,0.00012941,2]
[404254176,1770007831767,-1267.37023803,0.00012941,2]
[404254177,1770007831779,-235.57166318,0.0001301,2]
[404254178,1770007831788,-500.0,0.00013012,2]
[404254179,1770007831799,-500.0,0.00013012,2]
[404254180,1770007831815,-500.0,0.00013012,2]
[404254181,1770007831837,-500.0,0.00013012,2]
[404254182,1770007831857,-500.0,0.00013012,2]
[404254183,1770007831867,-500.0,0.00013012,2]
[404254184,1770007831878,-500.0,0.00013012,2]
[404254185,1770007831888,-500.0,0.00013012,2]
[404254186,1770007831898,-500.0,0.00013012,2]
[404254187,1770007831907,-500.0,0.00013012,2]
[404254188,1770007831917,-500.0,0.00013012,2]
[404254189,1770007831928,-500.0,0.00013012,2]
[404254190,1770007831938,-500.0,0.00013012,2]
[404254191,1770007831948,-500.0,0.00013012,2]
[404254192,1770007831958,-500.0,0.00013012,2]
[404254193,1770007831967,-500.0,0.00013012,2]
[404254194,1770007831978,-500.0,0.00013012,2]
[404254195,1770007831988,-500.0,0.00013012,2]
[404254196,1770007831998,-500.0,0.00013012,2]
[404254197,1770007832007,-500.0,0.00013012,2]
[404254198,1770007832017,-500.0,0.00013012,2]
[404254199,1770007832026,-151.0,0.00013012,2]
[404254200,1770007832036,-151.0,0.00013012,2]
[404254201,1770007832046,-151.0,0.00013012,2]
[404254202,1770007832056,-151.0,0.00013012,2]
[404254203,1770007832066,-151.0,0.00013012,2]
[404254204,1770007832075,-151.0,0.00013012,2]
[404254205,1770007832085,-151.0,0.00013012,2]
[404254206,1770007832094,-151.0,0.00013012,2]
[404254207,1770007832104,-151.0,0.00013012,2]
[404254208,1770007832114,-151.0,0.00013012,2]
[404254209,1770007832124,-151.0,0.00013012,2]
[404254210,1770007832133,-500.0,0.00013019,2]
[404254211,1770007832148,-196.01025121,0.00013019,2]
[404254212,1770007832158,-520.79935666,0.00013019,2]
[404254213,1770007832168,-500.0,0.00013019,2]
[404254214,1770007832178,-500.0,0.00013019,2]
[404254215,1770007832188,-500.0,0.00013019,2]
[404254216,1770007832198,-500.0,0.00013019,2]
[404254217,1770007832207,-500.0,0.00013019,2]
[404254218,1770007832217,-517.77310276,0.00013019,2]
[404254219,1770007832227,-500.0,0.00013019,2]
[404254220,1770007832236,-500.0,0.00013019,2]
[404254221,1770007832246,-500.0,0.00013019,2]
[404254222,1770007832255,-500.0,0.00013019,2]
[404254223,1770007832265,-500.0,0.00013019,2]
[404254224,1770007832583,-500.0,0.00013019,2]
[404254225,1770007832594,-500.0,0.00013019,2]
[404254226,1770007832607,-500.0,0.00013019,2]
[404254227,1770007832617,-500.0,0.00013019,2]
[404254228,1770007832627,-500.0,0.00013019,2]
[404254229,1770007832638,-602.19381708,0.00013019,2]
[404254230,1770007832648,-500.0,0.00013019,2]
[404254231,1770007832657,-239.86447206,0.00013019,2]
[404254232,1770007832667,-231741.42808991,0.0001302,2]
[404254233,1770007832736,1316.44,0.00012595,2]
[404254234,1770007832832,1316.44,0.00012627,2]
[404254235,1770007832885,1316.44,0.0001266,2]
[404254236,1770007832939,1316.44,0.00012692,2]
[404254237,1770007832986,1316.44,0.00012725,2]
[404254238,1770007833037,1316.44,0.00012757,2]
[404254239,1770007833128,1316.44,0.0001279,2]
[404254240,1770007833534,1316.44,0.00012822,2]
[404254241,1770007833732,635.12959241,0.00012855,2]
[404254242,1770007836394,-473.05956125,0.00012855,2]
[404254248,1770007837493,-208.25084634,0.00012855,2]
[404254249,1770007837511,-1207.22167196,0.00012887,2]
[404254258,1770007839635,-109.21832804,0.00012887,2]
[404254259,1770007839645,-491.50158096,0.0001292,2]
[404254260,1770007840074,-1.7e-07,0.0001292,2]
[404254261,1770007840086,-824.93841887,0.0001292,2]
[404254262,1770007840096,-505.14397989,0.00012952,2]
[404254263,1770007840107,-811.29602011,0.00012952,2]
[404254264,1770007840117,-3858.52430157,0.0001302,2]
[404254265,1770007840132,-789.47421459,0.0001302,2]
[404254266,1770007840143,-2663610.57339393,0.0001302,2]
[404254267,1770007840154,-513.59785505,0.0001302,2]
[404254268,1770007840163,-151.0,0.0001302,2]
[404254269,1770007840173,-513.59785505,0.0001302,2]
[404254270,1770007840182,-151.0,0.0001302,2]
[404254271,1770007840192,-166.66,0.00013041,2]
[404254272,1770007840202,-295.36,0.000131,2]
[404254273,1770007840215,-3637.57293296,0.00013107,2]
[404254274,1770007840226,-2471.8202,0.00013119,2]
[404254275,1770007840235,-237.2858,0.00013119,2]
[404254276,1770007840245,-1160.276,0.00013119,2]
[404254277,1770007840255,-167.107,0.00013119,2]
[404254278,1770007840264,-1667.59464096,0.0001312,2]
[404254279,1770007840274,-270.40551166,0.0001312,2]
[404254280,1770007840283,-3047.12,0.00013207,2]
[404254281,1770007840293,-150.99,0.00013207,2]
[404254282,1770007840303,-9999.99,0.00013207,2]
[404254283,1770007840312,-127685.29,0.00013207,2]
[404254284,1770007840321,-9999.99,0.00013207,2]
[404254285,1770007840331,-999.99,0.00013207,2]
[404254286,1770007840341,-14009.2,0.00013207,2]
[404254287,1770007840350,-9999.99,0.00013207,2]
[404254288,1770007840359,-4999.99,0.00013207,2]
[404254289,1770007840369,-9999.99,0.00013207,2]
[404254290,1770007840378,-464.87,0.00013207,2]
[404254291,1770007840388,-150.99,0.00013207,2]
[404254292,1770007840397,-10341.72,0.00013207,2]
[404254293,1770007840407,-9156.55,0.00013207,2]
[404254294,1770007840416,-9999.99,0.00013207,2]
[404254295,1770007840426,-31152.14895376,0.00013219,2]
[404254296,1770007840436,-179.48047234,0.0001322,2]
[404254297,1770007840445,-500.0,0.00013293,2]
[404254298,1770007840455,-166.66,0.00013299,2]
[404254299,1770007840464,-19708.1286,0.0001332,2]
[404254300,1770007840473,-1000.0,0.0001332,2]
[404254301,1770007840483,-6799.4482,0.0001332,2]